fUSD/lending_fUSD_20250125
["ID","MTS","AMOUNT","RATE_DAILY","PERIOD"]
[350328736,1737797474699,-681.52,0.00018767,2]
[350328737,1737797474715,-563.98,0.00018767,2]
[350328738,1737797474729,-500.0,0.00018767,2]
[350328739,1737797474743,-500.0,0.00018767,2]
[350328740,1737797474759,-1043.69,0.00018767,2]
[350328741,1737797474775,-719.35,0.00018767,2]
[350328742,1737797474791,-549.73,0.00018767,2]
[350328743,1737797474805,-500.0,0.00018767,2]
[350328744,1737797474819,-540.78,0.00018767,2]
[350328745,1737797474833,-422.19376697,0.00018767,2]
[350328746,1737797474849,-807.75,0.00018767,2]
[350328747,1737797474863,-1420.82,0.00018767,2]
[350328748,1737797474878,-1101.59,0.00018767,2]
[350328749,1737797474892,-1481.32,0.00018767,2]
[350328750,1737797474907,-1244.19,0.00018767,2]
[350328751,1737797474922,-565.45,0.00018767,2]
[350328752,1737797474938,-638.58,0.00018767,2]
[350328753,1737797474953,-2982.69,0.00018767,2]
[350328754,1737797474968,-1367.72,0.00018767,2]
[350328755,1737797474982,-2048.69,0.00018767,2]
[350328756,1737797474997,-150.0,0.00018768,2]
[350328757,1737797475012,-150.0,0.00018769,2]
[350328758,1737797475027,-1857.52180965,0.00018797,2]
[350328759,1737797475043,-150.0,0.00018799,2]
[350328760,1737797475058,-553.97,0.000188,2]
[350328761,1737797475072,-500.0,0.000188,2]
[350328762,1737797475086,-584.38,0.000188,2]
[350328763,1737797475100,-500.0,0.000188,2]
[350328764,1737797475115,-584.16,0.000188,2]
[350328765,1737797475131,-647.83,0.000188,2]
[350328766,1737797475146,-572.01,0.000188,2]
[350328767,1737797475160,-500.0,0.000188,2]
[350328768,1737797475174,-704.28,0.000188,2]
[350328769,1737797475188,-500.0,0.000188,2]
[350328770,1737797475202,-683.65,0.000188,2]
[350328771,1737797475216,-544.45,0.000188,2]
[350328772,1737797475231,-668.98,0.000188,2]
[350328773,1737797475246,-558.68,0.000188,2]
[350328774,1737797475262,-596.36,0.000188,2]
[350328775,1737797475277,-531.39,0.000188,2]
[350328776,1737797475292,-599.6,0.000188,2]
[350328777,1737797475306,-500.0,0.000188,2]
[350328778,1737797475321,-703.57,0.000188,2]
[350328779,1737797475336,-524.14804905,0.000188,2]
[350328780,1737797475351,-577.49,0.000188,2]
[350328781,1737797475364,-767.15,0.000188,2]
[350328782,1737797475541,-730.31,0.000188,2]
[350328783,1737797475556,-502.52,0.000188,2]
[350328784,1737797475565,-734.62,0.000188,2]
[350328785,1737797475575,-685.56,0.000188,2]
[350328786,1737797475585,-730.02,0.000188,2]
[350328787,1737797475595,-500.0,0.000188,2]
[350328788,1737797475604,-509.44,0.000188,2]
[350328789,1737797475614,-500.0,0.000188,2]
[350328790,1737797475624,-590.44,0.000188,2]
[350328791,1737797475633,-564.49,0.000188,2]
[350328792,1737797475644,-602.74,0.000188,2]
[350328793,1737797475654,-670.66,0.000188,2]
[350328794,1737797475663,-542.87,0.000188,2]
[350328795,1737797475673,-500.0,0.000188,2]
[350328796,1737797475683,-599.52,0.000188,2]
[350328797,1737797475693,-500.0,0.000188,2]
[350328798,1737797475703,-717.06,0.000188,2]
[350328799,1737797475712,-150.0,0.00018817,2]
[350328800,1737797475722,-151.0,0.00018838,2]
[350328801,1737797475732,-27849.44114153,0.00018842,2]
[350328802,1737797475742,-150.0,0.00018846,2]
[350328803,1737797475751,-15030.5413631,0.0001887,2]
[350328804,1737797475761,-150.0,0.0001887,2]
[350328805,1737797475770,-150.0,0.00018877,2]
[350328806,1737797475779,-1825.0,0.000189,2]
[350328807,1737797475789,-150.0,0.000189,2]
[350328808,1737797475808,-847.51,0.00018901,2]
[350328809,1737797475817,-948.3,0.00018901,2]
[350328810,1737797475827,-151.0,0.00018901,2]
[350328811,1737797475837,-500.0,0.00018901,2]
[350328812,1737797475847,-892.9,0.00018901,2]
[350328813,1737797475856,-810.96,0.00018901,2]
[350328814,1737797475866,-2187.67,0.00018901,2]
[350328815,1737797475876,-790.46,0.00018901,2]
[350328816,1737797475886,-1160.27,0.00018901,2]
[350328817,1737797475895,-1757.48,0.00018901,2]
[350328818,1737797475906,-500.0,0.00018901,2]
[350328819,1737797475916,-1000.0,0.00018901,2]
[350328820,1737797475925,-1272.01,0.00018901,2]
[350328821,1737797475935,-500.0,0.00018901,2]
[350328822,1737797475944,-2144.12,0.00018901,2]
[350328823,1737797475954,-1761.29,0.00018901,2]
[350328824,1737797475963,-616.57393588,0.00018901,2]
[350328825,1737797475973,-500.0,0.00018902,2]
[350328826,1737797475981,-660.25,0.00018902,2]
[350328827,1737797475991,-390.71397262,0.00018902,2]
[350328828,1737797476000,-500.0,0.00018902,2]
[350328829,1737797476009,-151.0,0.00018902,2]
[350328830,1737797476019,-500.0,0.00018902,2]
[350328831,1737797476028,-500.0,0.00018902,2]
[350328832,1737797476038,-556.36,0.00018902,2]
[350328833,1737797476047,-556.97,0.00018902,2]
[350328834,1737797476056,-554.44,0.00018902,2]
[350328835,1737797476066,-500.0,0.00018902,2]
[350328836,1737797476074,-520.83,0.00018902,2]
[350328837,1737797476083,-500.0,0.00018902,2]
[350328838,1737797476093,-500.0,0.00018902,2]
[350328839,1737797476102,-500.0,0.00018902,2]
[350328840,1737797476111,-500.0,0.00018902,2]
[350328841,1737797476121,-500.0,0.00018902,2]
[350328842,1737797476130,-670.64,0.00018902,2]
[350328843,1737797476140,-602.32,0.00018902,2]
[350328844,1737797476150,-680.16,0.00018902,2]
[350328845,1737797476159,-529.1,0.00018902,2]
[350328846,1737797476168,-500.0,0.00018902,2]
[350328847,1737797476177,-859.85,0.00018903,2]
[350328848,1737797476186,-500.0,0.00018903,2]
[350328849,1737797476197,-1261.29,0.00018903,2]
[350328850,1737797476206,-500.0,0.00018903,2]
[350328851,1737797476216,-414.733287,0.00018903,2]
[350328852,1737797476225,-886.87,0.00018903,2]
[350328853,1737797476235,-677.70576,0.00018903,2]
[350328854,1737797476245,-160.455444,0.00018903,2]
[350328855,1737797476255,-751.77,0.00018903,2]
[350328856,1737797476266,-1965.33,0.00018903,2]
[350328857,1737797476277,-1750.49,0.00018903,2]
[350328858,1737797476287,-620.77,0.00018903,2]
[350328859,1737797476297,-911.51,0.00018903,2]
[350328860,1737797476306,-500.0,0.00018903,2]
[350328861,1737797476315,-153.002702,0.00018903,2]
[350328862,1737797476327,-1144.83,0.00018903,2]
[350328863,1737797476338,-3470.4,0.00018903,2]
[350328864,1737797476348,-670.47,0.00018903,2]
[350328865,1737797476359,-931.54,0.00018903,2]
[350328866,1737797476369,-1892.47,0.00018903,2]
[350328867,1737797476379,-1137.65,0.00018903,2]
[350328868,1737797476389,-526.37,0.00018903,2]
[350328869,1737797476398,-2356.62,0.00018903,2]
[350328870,1737797476407,-2776.17,0.00018903,2]
[350328871,1737797476416,-1575.32,0.00018903,2]
[350328872,1737797476426,-1053.08,0.00018903,2]
[350328873,1737797476436,-3004.39,0.00018903,2]
[350328874,1737797476446,-607.11,0.00018903,2]
[350328875,1737797476455,-854.74,0.00018903,2]
[350328876,1737797476465,-1162.18,0.00018903,2]
[350328877,1737797476475,-966.49,0.00018904,2]
[350328878,1737797476484,-1692.78,0.00018904,2]
[350328879,1737797476495,-1322.88,0.00018904,2]
[350328880,1737797476504,-3207.34,0.00018904,2]
[350328881,1737797476514,-1220.06,0.00018904,2]
[350328882,1737797476523,-1876.29,0.00018904,2]
[350328883,1737797476532,-3623.03,0.00018904,2]
[350328884,1737797476547,-1095.65,0.00018904,2]
[350328885,1737797476557,-893.22,0.00018904,2]
[350328886,1737797476567,-2172.47,0.00018904,2]
[350328887,1737797476577,-2137.64,0.00018904,2]
[350328888,1737797476587,-3965.67,0.00018904,2]
[350328889,1737797476597,-727.17,0.00018904,2]
[350328890,1737797476607,-2139.73,0.00018904,2]
[350328891,1737797476617,-658.04,0.00018904,2]
[350328892,1737797476626,-993.89,0.00018904,2]
[350328893,1737797476636,-1604.26,0.00018904,2]
[350328894,1737797476646,-500.0,0.00018904,2]
[350328895,1737797476656,-767.56,0.00018904,2]
[350328896,1737797476666,-1799.67,0.00018904,2]
[350328897,1737797476675,-150.0,0.00018904,2]
[350328898,1737797476686,-900.97,0.00018904,2]
[350328899,1737797476695,-2375.71,0.00018904,2]
[350328900,1737797476706,-730.12,0.00018904,2]
[350328901,1737797476715,-849.75,0.00018904,2]
[350328902,1737797476726,-681.52,0.00018904,2]
[350328903,1737797476735,-563.98,0.00018904,2]
[350328904,1737797476745,-500.0,0.00018904,2]
[350328905,1737797476755,-500.0,0.00018904,2]
[350328906,1737797476765,-1043.69,0.00018904,2]
[350328907,1737797476775,-719.35,0.00018904,2]
[350328908,1737797476785,-500.0,0.00018904,2]
[350328909,1737797476795,-549.73,0.00018904,2]
[350328910,1737797476805,-540.78,0.00018904,2]
[350328911,1737797476815,-807.75,0.00018904,2]
[350328912,1737797476825,-1420.82,0.00018904,2]
[350328913,1737797476835,-1101.59,0.00018904,2]
[350328914,1737797476845,-1481.32,0.00018904,2]
[350328915,1737797476854,-1244.19,0.00018904,2]
[350328916,1737797476864,-565.45,0.00018904,2]
[350328917,1737797476874,-638.58,0.00018904,2]
[350328918,1737797476883,-2982.69,0.00018904,2]
[350328919,1737797476894,-1367.72,0.00018904,2]
[350328920,1737797476903,-2048.69,0.00018904,2]
[350328921,1737797476914,-4971.4434618,0.00018924,2]
[350328922,1737797476926,-7238.8472067,0.00018924,2]
[350328923,1737797476937,-150.0,0.0001893,2]
[350328924,1737797476947,-1000.0,0.0001893,2]
[350328925,1737797476957,-553.97,0.00018937,2]
[350328926,1737797476967,-240.77012699,0.00018937,2]
[350328927,1737797477062,-584.38,0.00018937,2]
[350328928,1737797477073,-500.0,0.00018937,2]
[350328929,1737797477082,-584.16,0.00018937,2]
[350328930,1737797477091,-647.83,0.00018937,2]
[350328931,1737797477100,-572.01,0.00018937,2]
[350328932,1737797477109,-500.0,0.00018937,2]
[350328933,1737797477118,-704.28,0.00018937,2]
[350328934,1737797477127,-500.0,0.00018937,2]
[350328935,1737797477135,-683.65,0.00018937,2]
[350328936,1737797477142,-544.45,0.00018937,2]
[350328937,1737797477150,-668.98,0.00018937,2]
[350328938,1737797477158,-558.68,0.00018937,2]
[350328939,1737797477166,-596.36,0.00018937,2]
[350328940,1737797477173,-531.39,0.00018937,2]
[350328941,1737797477181,-599.6,0.00018937,2]
[350328942,1737797477190,-195.50308457,0.00018937,2]
[350328943,1737797477199,-703.57,0.00018937,2]
[350328944,1737797477208,-577.49,0.00018937,2]
[350328945,1737797477217,-767.15,0.00018937,2]
[350328946,1737797477227,-730.31,0.00018937,2]
[350328947,1737797477236,-502.52,0.00018937,2]
[350328948,1737797477246,-734.62,0.00018937,2]
[350328949,1737797477256,-685.56,0.00018937,2]
[350328950,1737797477265,-730.02,0.00018937,2]
[350328951,1737797477277,-500.0,0.00018937,2]
[350328952,1737797477287,-509.44,0.00018937,2]
[350328953,1737797477299,-500.0,0.00018937,2]
[350328954,1737797477309,-590.44,0.00018937,2]
[350328955,1737797477319,-564.49,0.00018937,2]
[350328956,1737797477328,-602.74,0.00018937,2]
[350328957,1737797477338,-670.66,0.00018937,2]
[350328958,1737797477349,-542.87,0.00018937,2]
[350328959,1737797477360,-378.37969355,0.00018937,2]
[350328960,1737797477370,-599.52,0.00018937,2]
[350328961,1737797477380,-500.0,0.00018937,2]
[350328962,1737797477391,-717.06,0.00018937,2]
[350328963,1737797477400,-150.0,0.00018942,2]
[350328964,1737797477410,-150.0,0.00018961,2]
[350328965,1737797477419,-150.0,0.00018997,2]
[350328966,1737797477428,-2032.31,0.00019,2]
[350328967,1737797477438,-8970.0,0.00019,2]
[350328968,1737797477447,-9452.21597015,0.00019,2]
[350328969,1737797477456,-151.0,0.00019,2]
[350328970,1737797477465,-151.0,0.00019,2]
[350328971,1737797477474,-650.0,0.00019,2]
[350328972,1737797477483,-1000.0,0.00019006,2]
[350328973,1737797477492,-150.0,0.00019013,2]
[350328974,1737797477502,-150.0,0.00019027,2]
[350328975,1737797477512,-150.0,0.00019036,2]
[350328976,1737797477521,-847.51,0.00019038,2]
[350328977,1737797477530,-948.3,0.00019038,2]
[350328978,1737797477542,-500.0,0.00019038,2]
[350328979,1737797477551,-892.9,0.00019038,2]
[350328980,1737797477560,-810.96,0.00019038,2]
[350328981,1737797477570,-2187.67,0.00019038,2]
[350328982,1737797477579,-790.46,0.00019038,2]
[350328983,1737797477589,-1160.27,0.00019038,2]
[350328984,1737797477599,-1757.48,0.00019038,2]
[350328985,1737797477608,-500.0,0.00019038,2]
[350328986,1737797477619,-1000.0,0.00019038,2]
[350328987,1737797477628,-1272.01,0.00019038,2]
[350328988,1737797477638,-589.48,0.00019038,2]
[350328989,1737797477647,-2144.12,0.00019038,2]
[350328990,1737797477656,-1761.29,0.00019038,2]
[350328991,1737797477665,-500.0,0.00019039,2]
[350328992,1737797477674,-660.25,0.00019039,2]
[350328993,1737797477684,-500.0,0.00019039,2]
[350328994,1737797477693,-500.0,0.00019039,2]
[350328995,1737797477702,-500.0,0.00019039,2]
[350328996,1737797477711,-556.36,0.00019039,2]
[350328997,1737797477720,-150.0,0.00019039,2]
[350328998,1737797477730,-556.97,0.00019039,2]
[350328999,1737797477739,-251.942098,0.00019039,2]
[350329000,1737797477748,-251.942098,0.00019039,2]
[350329001,1737797477757,-554.44,0.00019039,2]
[350329002,1737797477766,-500.0,0.00019039,2]
[350329003,1737797477775,-520.83,0.00019039,2]
[350329004,1737797477784,-500.0,0.00019039,2]
[350329005,1737797477794,-500.0,0.00019039,2]
[350329006,1737797477804,-500.0,0.00019039,2]
[350329007,1737797477814,-461.61057916,0.00019039,2]
[350329008,1737797477824,-500.0,0.00019039,2]
[350329009,1737797477834,-670.64,0.00019039,2]
[350329010,1737797477843,-602.32,0.00019039,2]
[350329011,1737797477853,-680.16,0.00019039,2]
[350329012,1737797477863,-529.1,0.00019039,2]
[350329013,1737797477872,-500.0,0.00019039,2]
[350329014,1737797477882,-859.85,0.0001904,2]
[350329015,1737797477893,-500.0,0.0001904,2]
[350329016,1737797477903,-1261.29,0.0001904,2]
[350329017,1737797477912,-500.0,0.0001904,2]
[350329018,1737797477923,-414.733287,0.0001904,2]
[350329019,1737797477932,-886.87,0.0001904,2]
[350329020,1737797477943,-677.70576,0.0001904,2]
[350329021,1737797477952,-751.77,0.0001904,2]
[350329022,1737797477962,-1965.33,0.0001904,2]
[350329023,1737797477972,-1750.49,0.0001904,2]
[350329024,1737797477982,-620.77,0.0001904,2]
[350329025,1737797477991,-911.51,0.0001904,2]
[350329026,1737797478000,-391.8232629,0.0001904,2]
[350329027,1737797478010,-1144.83,0.0001904,2]
[350329028,1737797478020,-3470.4,0.0001904,2]
[350329029,1737797478029,-670.47,0.0001904,2]
[350329030,1737797478040,-931.54,0.0001904,2]
[350329031,1737797478049,-1892.47,0.0001904,2]
[350329032,1737797478059,-1137.65,0.0001904,2]
[350329033,1737797478069,-526.37,0.0001904,2]
[350329034,1737797478078,-2356.62,0.0001904,2]
[350329035,1737797478088,-2776.17,0.0001904,2]
[350329036,1737797478098,-1575.32,0.0001904,2]
[350329037,1737797478108,-1053.08,0.0001904,2]
[350329038,1737797478118,-3004.39,0.0001904,2]
[350329039,1737797478127,-607.11,0.0001904,2]
[350329040,1737797478137,-854.74,0.0001904,2]
[350329041,1737797478148,-1162.18,0.0001904,2]
[350329042,1737797478158,-966.49,0.00019041,2]
[350329043,1737797478168,-1692.78,0.00019041,2]
[350329044,1737797478178,-1322.88,0.00019041,2]
[350329045,1737797478188,-3207.34,0.00019041,2]
[350329046,1737797478198,-1220.06,0.00019041,2]
[350329047,1737797478207,-1876.29,0.00019041,2]
[350329048,1737797478216,-3623.03,0.00019041,2]
[350329049,1737797478226,-1095.65,0.00019041,2]
[350329050,1737797478236,-893.22,0.00019041,2]
[350329051,1737797478250,-2172.47,0.00019041,2]
[350329052,1737797478260,-2137.64,0.00019041,2]
[350329053,1737797478270,-3965.67,0.00019041,2]
[350329054,1737797478279,-727.17,0.00019041,2]
[350329055,1737797478288,-2139.73,0.00019041,2]
[350329056,1737797478298,-658.04,0.00019041,2]
[350329057,1737797478308,-993.89,0.00019041,2]
[350329058,1737797478318,-1604.26,0.00019041,2]
[350329059,1737797478328,-500.0,0.00019041,2]
[350329060,1737797478338,-767.56,0.00019041,2]
[350329061,1737797478348,-1799.67,0.00019041,2]
[350329062,1737797478357,-900.97,0.00019041,2]
[350329063,1737797478367,-2375.71,0.00019041,2]
[350329064,1737797478377,-730.12,0.00019041,2]
[350329065,1737797478387,-849.75,0.00019041,2]
[350329066,1737797478397,-681.52,0.00019041,2]
[350329067,1737797478407,-563.98,0.00019041,2]
[350329068,1737797478416,-500.0,0.00019041,2]
[350329069,1737797478429,-500.0,0.00019041,2]
[350329070,1737797478443,-1043.69,0.00019041,2]
[350329071,1737797478458,-719.35,0.00019041,2]
[350329072,1737797478471,-500.0,0.00019041,2]
[350329073,1737797478481,-549.73,0.00019041,2]
[350329074,1737797478492,-540.78,0.00019041,2]
[350329075,1737797478503,-807.75,0.00019041,2]
[350329076,1737797478512,-1420.82,0.00019041,2]
[350329077,1737797478522,-1101.59,0.00019041,2]
[350329078,1737797478532,-1481.32,0.00019041,2]
[350329079,1737797478547,-1244.19,0.00019041,2]
[350329080,1737797478556,-565.45,0.00019041,2]
[350329081,1737797478566,-638.58,0.00019041,2]
[350329082,1737797478576,-2982.69,0.00019041,2]
[350329083,1737797478586,-1367.72,0.00019041,2]
[350329084,1737797478596,-2048.69,0.00019041,2]
[350329085,1737797478606,-828.79274622,0.00019071,2]
[350329086,1737797478615,-553.97,0.00019074,2]
[350329087,1737797478632,-584.38,0.00019074,2]
[350329088,1737797478643,-500.0,0.00019074,2]
[350329089,1737797478652,-584.16,0.00019074,2]
[350329090,1737797478663,-647.83,0.00019074,2]
[350329091,1737797478673,-572.01,0.00019074,2]
[350329092,1737797478683,-500.0,0.00019074,2]
[350329093,1737797478693,-704.28,0.00019074,2]
[350329094,1737797478702,-500.0,0.00019074,2]
[350329095,1737797478712,-683.65,0.00019074,2]
[350329096,1737797478722,-544.45,0.00019074,2]
[350329097,1737797478732,-668.98,0.00019074,2]
[350329098,1737797478742,-558.68,0.00019074,2]
[350329099,1737797478752,-596.36,0.00019074,2]
[350329100,1737797478762,-531.39,0.00019074,2]
[350329101,1737797478773,-599.6,0.00019074,2]
[350329102,1737797478783,-703.57,0.00019074,2]
[350329103,1737797478793,-577.49,0.00019074,2]
[350329104,1737797478803,-767.15,0.00019074,2]
[350329105,1737797478814,-730.31,0.00019074,2]
[350329106,1737797478824,-502.52,0.00019074,2]
[350329107,1737797478835,-734.62,0.00019074,2]
[350329108,1737797478845,-685.56,0.00019074,2]
[350329109,1737797478855,-730.02,0.00019074,2]
[350329110,1737797478866,-500.0,0.00019074,2]
[350329111,1737797478875,-509.44,0.00019074,2]
[350329112,1737797478885,-500.0,0.00019074,2]
[350329113,1737797478896,-590.44,0.00019074,2]
[350329114,1737797478906,-564.49,0.00019074,2]
[350329115,1737797478918,-602.74,0.00019074,2]
[350329116,1737797478929,-670.66,0.00019074,2]
[350329117,1737797478939,-542.87,0.00019074,2]
[350329118,1737797478949,-599.52,0.00019074,2]
[350329119,1737797478960,-500.0,0.00019074,2]
[350329120,1737797478971,-717.06,0.00019074,2]
[350329121,1737797478981,-226.15735449,0.00019092,2]
[350329122,1737797478992,-150.0,0.00019103,2]
[350329123,1737797479003,-150.0,0.00019115,2]
[350329124,1737797479013,-150.0,0.00019121,2]
[350329125,1737797479023,-150.0,0.0001914,2]
[350329126,1737797479033,-1857.52180965,0.00019141,2]
[350329127,1737797479044,-150.0,0.00019148,2]
[350329128,1737797479054,-847.51,0.00019175,2]
[350329129,1737797479064,-948.3,0.00019175,2]
[350329130,1737797479074,-500.0,0.00019175,2]
[350329131,1737797479085,-892.9,0.00019175,2]
[350329132,1737797479094,-810.96,0.00019175,2]
[350329133,1737797479105,-2187.67,0.00019175,2]
[350329134,1737797479115,-790.46,0.00019175,2]
[350329135,1737797479125,-1160.27,0.00019175,2]
[350329136,1737797479135,-1757.48,0.00019175,2]
[350329137,1737797479145,-500.0,0.00019175,2]
[350329138,1737797479156,-1000.0,0.00019175,2]
[350329139,1737797479166,-1272.01,0.00019175,2]
[350329140,1737797479176,-2144.12,0.00019175,2]
[350329141,1737797479186,-1761.29,0.00019175,2]
[350329142,1737797479195,-377.41500248,0.00019176,2]
[350329143,1737797479212,-660.25,0.00019176,2]
[350329144,1737797479222,-268.9076311,0.00019176,2]
[350329145,1737797479232,-500.0,0.00019176,2]
[350329146,1737797479243,-500.0,0.00019176,2]
[350329147,1737797479253,-556.36,0.00019176,2]
[350329148,1737797479263,-556.97,0.00019176,2]
[350329149,1737797479273,-554.44,0.00019176,2]
[350329150,1737797479283,-500.0,0.00019176,2]
[350329151,1737797479292,-520.83,0.00019176,2]
[350329152,1737797479302,-500.0,0.00019176,2]
[350329153,1737797479312,-500.0,0.00019176,2]
[350329154,1737797479321,-500.0,0.00019176,2]
[350329155,1737797479332,-500.0,0.00019176,2]
[350329156,1737797479342,-670.64,0.00019176,2]
[350329157,1737797479352,-602.32,0.00019176,2]
[350329158,1737797479362,-680.16,0.00019176,2]
[350329159,1737797479372,-529.1,0.00019176,2]
[350329160,1737797479381,-500.0,0.00019176,2]
[350329161,1737797479392,-859.85,0.00019177,2]
[350329162,1737797479401,-500.0,0.00019177,2]
[350329163,1737797479411,-1261.29,0.00019177,2]
[350329164,1737797479420,-500.0,0.00019177,2]
[350329165,1737797479431,-414.733287,0.00019177,2]
[350329166,1737797479441,-886.87,0.00019177,2]
[350329167,1737797479451,-677.70576,0.00019177,2]
[350329168,1737797479461,-751.77,0.00019177,2]
[350329169,1737797479471,-1965.33,0.00019177,2]
[350329170,1737797479482,-1750.49,0.00019177,2]
[350329171,1737797479492,-620.77,0.00019177,2]
[350329172,1737797479502,-911.51,0.00019177,2]
[350329173,1737797479512,-153.002702,0.00019177,2]
[350329174,1737797479521,-1144.83,0.00019177,2]
[350329175,1737797479531,-3470.4,0.00019177,2]
[350329176,1737797479545,-670.47,0.00019177,2]
[350329177,1737797479555,-931.54,0.00019177,2]
[350329178,1737797479565,-1892.47,0.00019177,2]
[350329179,1737797479575,-1137.65,0.00019177,2]
[350329180,1737797479586,-526.37,0.00019177,2]
[350329181,1737797479596,-2356.62,0.00019177,2]
[350329182,1737797479606,-2776.17,0.00019177,2]
[350329183,1737797479617,-1575.32,0.00019177,2]
[350329184,1737797479627,-1053.08,0.00019177,2]
[350329185,1737797479637,-3004.39,0.00019177,2]
[350329186,1737797479647,-607.11,0.00019177,2]
[350329187,1737797479656,-854.74,0.00019177,2]
[350329188,1737797479666,-1162.18,0.00019177,2]
[350329189,1737797479676,-966.49,0.00019178,2]
[350329190,1737797479686,-1692.78,0.00019178,2]
[350329191,1737797479696,-1322.88,0.00019178,2]
[350329192,1737797479706,-3207.34,0.00019178,2]
[350329193,1737797479716,-1220.06,0.00019178,2]
[350329194,1737797479726,-1876.29,0.00019178,2]
[350329195,1737797479735,-3623.03,0.00019178,2]
[350329196,1737797479745,-1095.65,0.00019178,2]
[350329197,1737797479755,-893.22,0.00019178,2]
[350329198,1737797479765,-2172.47,0.00019178,2]
[350329199,1737797479775,-2137.64,0.00019178,2]
[350329200,1737797479785,-3965.67,0.00019178,2]
[350329201,1737797479795,-727.17,0.00019178,2]
[350329202,1737797479804,-2139.73,0.00019178,2]
[350329203,1737797479814,-658.04,0.00019178,2]
[350329204,1737797479824,-993.89,0.00019178,2]
[350329205,1737797479835,-1604.26,0.00019178,2]
[350329206,1737797479845,-500.0,0.00019178,2]
[350329207,1737797479856,-767.56,0.00019178,2]
[350329208,1737797479867,-1799.67,0.00019178,2]
[350329209,1737797479878,-900.97,0.00019178,2]
[350329210,1737797479894,-2375.71,0.00019178,2]
[350329211,1737797479904,-730.12,0.00019178,2]
[350329212,1737797479914,-849.75,0.00019178,2]
[350329213,1737797479924,-681.52,0.00019178,2]
[350329214,1737797479933,-563.98,0.00019178,2]
[350329215,1737797479943,-500.0,0.00019178,2]
[350329216,1737797479953,-500.0,0.00019178,2]
[350329217,1737797479963,-1043.69,0.00019178,2]
[350329218,1737797479973,-719.35,0.00019178,2]
[350329219,1737797479983,-500.0,0.00019178,2]
[350329220,1737797480108,-549.73,0.00019178,2]
[350329221,1737797480118,-540.78,0.00019178,2]
[350329222,1737797480128,-807.75,0.00019178,2]
[350329223,1737797480138,-1420.82,0.00019178,2]
[350329224,1737797480148,-1101.59,0.00019178,2]
[350329225,1737797480158,-1481.32,0.00019178,2]
[350329226,1737797480167,-1244.19,0.00019178,2]
[350329227,1737797480177,-565.45,0.00019178,2]
[350329228,1737797480187,-638.58,0.00019178,2]
[350329229,1737797480196,-2982.69,0.00019178,2]
[350329230,1737797480205,-1367.72,0.00019178,2]
[350329231,1737797480215,-2048.69,0.00019178,2]
[350329232,1737797480224,-150.0,0.00019197,2]
[350329233,1737797480234,-153.0,0.00019198,2]
[350329234,1737797480245,-150.0,0.0001921,2]
[350329235,1737797480254,-553.97,0.00019211,2]